[Event "Titled Tuesday Blitz May 16 Early 2023"]
[White "Ibarra Jerez, Jose Carlos"]
[Black "Kravtsiv, Martyn"]
[WhiteFideId "2226332"]
[BlackFideId "14113147"]
[WhiteElo "2638"]
[BlackElo "2695"]
[Result "0-1"]
[Round "07"]
[TimeControl "180+2"]
[Date "2023.05.16"]
[WhiteClock "0:00:01"]
[BlackClock "0:00:36"]

1. e4 {[%clk 0:03:00]}  e5 {[%clk 0:02:59]} 2. Nf3 {[%clk 0:03:01]}  Nc6 {[%clk 0:03:00]} 3. Nc3 {[%clk 0:03:01]}  Nf6 {[%clk 0:02:59]} 4. h3 {[%clk 0:03:01]}  Bb4 {[%clk 0:02:56]} 5. Nd5 {[%clk 0:03:01]}  Nxd5 {[%clk 0:02:54]} 6. exd5 {[%clk 0:03:01]}  e4 {[%clk 0:02:55]} 7. dxc6 {[%clk 0:03:01]}  exf3 {[%clk 0:02:52]} 8. Qxf3 {[%clk 0:03:01]}  dxc6 {[%clk 0:02:51]} 9. Bc4 {[%clk 0:03:01]}  O-O {[%clk 0:02:50]} 10. O-O {[%clk 0:03:01]}  Qd4 {[%clk 0:02:45]} 11. d3 {[%clk 0:02:57]}  Bd6 {[%clk 0:02:44]} 12. Re1 {[%clk 0:02:55]}  Be6 {[%clk 0:02:03]} 13. Re4 {[%clk 0:02:47]}  Qb6 {[%clk 0:01:52]} 14. Bxe6 {[%clk 0:02:44]}  fxe6 {[%clk 0:01:52]} 15. Qe2 {[%clk 0:02:32]}  Bc5 {[%clk 0:01:52]} 16. Rf4 {[%clk 0:02:08]}  e5 {[%clk 0:01:32]} 17. Qxe5 {[%clk 0:01:30]}  Rfe8 {[%clk 0:01:26]} 18. Qf5 {[%clk 0:01:25]}  Re1+ {[%clk 0:01:20]} 19. Kh2 {[%clk 0:01:25]}  Rf8 {[%clk 0:01:14]} 20. Qg4 {[%clk 0:01:05]}  Bd6 {[%clk 0:01:14]} 21. Be3 {[%clk 0:00:29]}  Rxe3 {[%clk 0:01:08]} 22. fxe3 {[%clk 0:00:25]}  Qxe3 {[%clk 0:01:09]} 23. g3 {[%clk 0:00:20]}  Bxf4 {[%clk 0:01:09]} 24. gxf4 {[%clk 0:00:19]}  Rxf4 {[%clk 0:01:09]} 25. Qc8+ {[%clk 0:00:15]}  Rf8 {[%clk 0:01:09]} 26. Qg4 {[%clk 0:00:14]}  Qd2+ {[%clk 0:00:55]} 27. Kh1 {[%clk 0:00:14]}  Qxc2 {[%clk 0:00:56]} 28. Rg1 {[%clk 0:00:10]}  Qxb2 {[%clk 0:00:55]} 29. Qe6+ {[%clk 0:00:10]}  Kh8 {[%clk 0:00:55]} 30. Qe7 {[%clk 0:00:09]}  Qf6 {[%clk 0:00:50]} 31. Qxc7 {[%clk 0:00:08]}  Qf3+ {[%clk 0:00:47]} 32. Kh2 {[%clk 0:00:09]}  Qf4+ {[%clk 0:00:47]} 33. Qxf4 {[%clk 0:00:08]}  Rxf4 {[%clk 0:00:48]} 34. Re1 {[%clk 0:00:09]}  Kg8 {[%clk 0:00:42]} 35. Re7 {[%clk 0:00:08]}  Rb4 {[%clk 0:00:42]} 36. Kg3 {[%clk 0:00:07]}  h6 {[%clk 0:00:40]} 37. h4 {[%clk 0:00:07]}  a5 {[%clk 0:00:39]} 38. h5 {[%clk 0:00:06]}  a4 {[%clk 0:00:39]} 39. a3 {[%clk 0:00:05]}  Rb3 {[%clk 0:00:39]} 40. Kf4 {[%clk 0:00:05]}  b5 {[%clk 0:00:39]} 41. Rd7 {[%clk 0:00:04]}  Rxa3 {[%clk 0:00:39]} 42. Kf5 {[%clk 0:00:04]}  Kh7 {[%clk 0:00:38]} 43. Rd6 {[%clk 0:00:03]}  Rc3 {[%clk 0:00:38]} 44. Ke4 {[%clk 0:00:03]}  a3 {[%clk 0:00:37]} 45. Kd4 {[%clk 0:00:03]}  b4 {[%clk 0:00:37]} 46. Rd7 {[%clk 0:00:03]}  a2 {[%clk 0:00:36]} 47. Ra7 {[%clk 0:00:01]}  Ra3 {[%clk 0:00:36]} 0-1


[Site "https://www.chess.com"]

[Event "Titled Tuesday Blitz May 16 Early 2023"]
[White "Kramnik, Vladimir"]
[Black "Gunina, Valentina"]
[WhiteFideId "4101588"]
[BlackFideId "4167570"]
[WhiteElo "2703"]
[BlackElo "2352"]
[Result "1/2-1/2"]
[Round "07"]
[TimeControl "180+2"]
[Date "2023.05.16"]
[WhiteClock "0:00:19"]
[BlackClock "0:00:29"]

1. c4 {[%clk 0:03:00]}  c6 {[%clk 0:02:53]} 2. Nf3 {[%clk 0:02:59]}  d5 {[%clk 0:02:53]} 3. e3 {[%clk 0:02:59]}  Bg4 {[%clk 0:02:53]} 4. cxd5 {[%clk 0:02:52]}  Bxf3 {[%clk 0:02:41]} 5. gxf3 {[%clk 0:02:49]}  cxd5 {[%clk 0:02:42]} 6. Qb3 {[%clk 0:02:47]}  Qc7 {[%clk 0:02:39]} 7. Bb5+ {[%clk 0:02:41]}  Nd7 {[%clk 0:02:37]} 8. Nc3 {[%clk 0:02:36]}  e6 {[%clk 0:02:37]} 9. d4 {[%clk 0:02:34]}  a6 {[%clk 0:02:36]} 10. Bxd7+ {[%clk 0:02:33]}  Qxd7 {[%clk 0:02:37]} 11. Bd2 {[%clk 0:02:27]}  Nf6 {[%clk 0:02:33]} 12. Na4 {[%clk 0:02:27]}  Qb5 {[%clk 0:02:29]} 13. Rc1 {[%clk 0:02:18]}  Bd6 {[%clk 0:01:59]} 14. Nb6 {[%clk 0:02:13]}  Qxb3 {[%clk 0:01:58]} 15. axb3 {[%clk 0:02:12]}  Rd8 {[%clk 0:01:58]} 16. Ba5 {[%clk 0:02:10]}  Ke7 {[%clk 0:01:53]} 17. Ke2 {[%clk 0:02:10]}  Nd7 {[%clk 0:01:48]} 18. Nxd7 {[%clk 0:02:04]}  Rxd7 {[%clk 0:01:48]} 19. f4 {[%clk 0:02:02]}  g6 {[%clk 0:01:36]} 20. Rc2 {[%clk 0:02:02]}  b6 {[%clk 0:01:25]} 21. Bxb6 {[%clk 0:01:45]}  Rb8 {[%clk 0:01:24]} 22. Rc6 {[%clk 0:01:44]}  Rdb7 {[%clk 0:01:22]} 23. Ba5 {[%clk 0:01:32]}  Rxb3 {[%clk 0:01:20]} 24. Rxa6 {[%clk 0:01:28]}  Rxb2+ {[%clk 0:01:20]} 25. Kf3 {[%clk 0:01:29]}  Rc2 {[%clk 0:01:12]} 26. Ra1 {[%clk 0:01:27]}  h5 {[%clk 0:01:07]} 27. Be1 {[%clk 0:01:21]}  Rb7 {[%clk 0:01:06]} 28. Ra8 {[%clk 0:01:18]}  Kf6 {[%clk 0:01:06]} 29. R1a6 {[%clk 0:01:14]}  Bb4 {[%clk 0:01:00]} 30. Bxb4 {[%clk 0:01:04]}  Rxb4 {[%clk 0:00:59]} 31. Ra2 {[%clk 0:01:00]}  Rbb2 {[%clk 0:00:55]} 32. Rxb2 {[%clk 0:00:59]}  Rxb2 {[%clk 0:00:56]} 33. Ra7 {[%clk 0:01:00]}  Rb1 {[%clk 0:00:53]} 34. Kg2 {[%clk 0:00:58]}  Rb8 {[%clk 0:00:49]} 35. Kg3 {[%clk 0:00:57]}  Rf8 {[%clk 0:00:49]} 36. f3 {[%clk 0:00:54]}  Rb8 {[%clk 0:00:46]} 37. Ra3 {[%clk 0:00:32]}  Rb2 {[%clk 0:00:45]} 38. Rc3 {[%clk 0:00:28]}  Re2 {[%clk 0:00:40]} 39. Rb3 {[%clk 0:00:27]}  Kf5 {[%clk 0:00:39]} 40. h4 {[%clk 0:00:22]}  Kf6 {[%clk 0:00:33]} 41. Ra3 {[%clk 0:00:21]}  Kf5 {[%clk 0:00:29]} 42. Ra7 {[%clk 0:00:20]}  Kf6 {[%clk 0:00:29]} 43. Ra3 {[%clk 0:00:20]}  Kf5 {[%clk 0:00:29]} 44. Rb3 {[%clk 0:00:19]}  Kf6 {[%clk 0:00:29]} 45. Ra3 {[%clk 0:00:19]} 1/2-1/2


[Site "https://www.chess.com"]

[Event "Titled Tuesday Blitz May 16 Early 2023"]
[White "Keymer, Vincent"]
[Black "Priasmoro, Novendra"]
[WhiteFideId "12940690"]
[BlackFideId "7105029"]
[WhiteElo "2669"]
[BlackElo "2412"]
[Result "0-1"]
[Round "07"]
[TimeControl "180+2"]
[Date "2023.05.16"]
[WhiteClock "0:00:01"]
[BlackClock "0:00:15"]

1. a3 {[%clk 0:03:00]}  Nf6 {[%clk 0:02:59]} 2. Nf3 {[%clk 0:03:00]}  g6 {[%clk 0:02:59]} 3. b4 {[%clk 0:03:00]}  Bg7 {[%clk 0:03:00]} 4. Bb2 {[%clk 0:03:01]}  O-O {[%clk 0:03:01]} 5. g3 {[%clk 0:03:01]}  c6 {[%clk 0:02:58]} 6. Bg2 {[%clk 0:02:59]}  a5 {[%clk 0:02:58]} 7. c4 {[%clk 0:02:47]}  axb4 {[%clk 0:02:57]} 8. axb4 {[%clk 0:02:47]}  Rxa1 {[%clk 0:02:58]} 9. Bxa1 {[%clk 0:02:48]}  d5 {[%clk 0:02:59]} 10. Na3 {[%clk 0:02:39]}  dxc4 {[%clk 0:02:53]} 11. Nxc4 {[%clk 0:02:37]}  Na6 {[%clk 0:02:54]} 12. Qb1 {[%clk 0:02:24]}  b5 {[%clk 0:02:33]} 13. Nce5 {[%clk 0:02:22]}  Qd6 {[%clk 0:02:33]} 14. O-O {[%clk 0:01:53]}  Nxb4 {[%clk 0:02:28]} 15. Rc1 {[%clk 0:01:53]}  c5 {[%clk 0:02:24]} 16. h3 {[%clk 0:01:09]}  Be6 {[%clk 0:02:22]} 17. d4 {[%clk 0:01:06]}  c4 {[%clk 0:02:10]} 18. e4 {[%clk 0:01:00]}  Na6 {[%clk 0:01:07]} 19. d5 {[%clk 0:00:43]}  Bd7 {[%clk 0:01:04]} 20. Ng5 {[%clk 0:00:32]}  Qb4 {[%clk 0:00:57]} 21. Qa2 {[%clk 0:00:21]}  Nc5 {[%clk 0:00:52]} 22. Ngxf7 {[%clk 0:00:20]}  Nb3 {[%clk 0:00:45]} 23. Rb1 {[%clk 0:00:19]}  Qd2 {[%clk 0:00:44]} 24. Qa7 {[%clk 0:00:16]}  c3 {[%clk 0:00:29]} 25. Bxc3 {[%clk 0:00:09]}  Qxc3 {[%clk 0:00:29]} 26. Nxd7 {[%clk 0:00:08]}  Rxf7 {[%clk 0:00:27]} 27. Qb8+ {[%clk 0:00:07]}  Bf8 {[%clk 0:00:28]} 28. Ne5 {[%clk 0:00:05]}  Qc2 {[%clk 0:00:21]} 29. Rf1 {[%clk 0:00:04]}  Nd2 {[%clk 0:00:20]} 30. Re1 {[%clk 0:00:03]}  Nfxe4 {[%clk 0:00:15]} 31. Nxf7 {[%clk 0:00:02]}  Nf3+ {[%clk 0:00:15]} 32. Bxf3 {[%clk 0:00:01]}  Qxf2+ {[%clk 0:00:15]} 33. Kh1 {[%clk 0:00:01]}  Qxe1+ {[%clk 0:00:15]} 0-1


[Site "https://www.chess.com"]

[Event "Titled Tuesday Blitz May 16 Early 2023"]
[White "Durarbayli, Vasif"]
[Black "koncheto"]
[WhiteFideId "13402935"]
[WhiteElo "2551"]
[BlackElo "2589"]
[Result "1-0"]
[Round "07"]
[TimeControl "180+2"]
[Date "2023.05.16"]
[WhiteClock "0:00:10"]
[BlackClock "0:00:03"]

1. e4 {[%clk 0:03:00]}  c5 {[%clk 0:02:58]} 2. Nf3 {[%clk 0:02:59]}  d6 {[%clk 0:02:58]} 3. d4 {[%clk 0:02:59]}  cxd4 {[%clk 0:02:59]} 4. Nxd4 {[%clk 0:02:59]}  Nf6 {[%clk 0:02:59]} 5. Nc3 {[%clk 0:02:59]}  Nc6 {[%clk 0:02:59]} 6. f3 {[%clk 0:02:59]}  e6 {[%clk 0:02:57]} 7. Be3 {[%clk 0:02:56]}  a6 {[%clk 0:02:56]} 8. Qd2 {[%clk 0:02:56]}  Bd7 {[%clk 0:02:52]} 9. O-O-O {[%clk 0:02:55]}  h5 {[%clk 0:02:48]} 10. Kb1 {[%clk 0:02:54]}  Rc8 {[%clk 0:02:48]} 11. Nxc6 {[%clk 0:02:40]}  Bxc6 {[%clk 0:02:47]} 12. Ne2 {[%clk 0:02:32]}  Be7 {[%clk 0:02:40]} 13. Nd4 {[%clk 0:02:32]}  Bd7 {[%clk 0:02:40]} 14. Bd3 {[%clk 0:02:28]}  Qc7 {[%clk 0:02:29]} 15. c4 {[%clk 0:02:23]}  e5 {[%clk 0:02:26]} 16. Nf5 {[%clk 0:02:09]}  Bxf5 {[%clk 0:02:14]} 17. exf5 {[%clk 0:02:10]}  Nd7 {[%clk 0:02:02]} 18. Be4 {[%clk 0:02:03]}  Nf6 {[%clk 0:01:46]} 19. Rc1 {[%clk 0:02:00]}  Nxe4 {[%clk 0:01:42]} 20. fxe4 {[%clk 0:02:00]}  Qc6 {[%clk 0:01:43]} 21. Qd3 {[%clk 0:01:56]}  h4 {[%clk 0:01:22]} 22. Rhd1 {[%clk 0:01:27]}  O-O {[%clk 0:01:08]} 23. g4 {[%clk 0:01:27]}  Bd8 {[%clk 0:01:02]} 24. g5 {[%clk 0:01:10]}  Ba5 {[%clk 0:00:54]} 25. f6 {[%clk 0:00:57]}  g6 {[%clk 0:00:30]} 26. a3 {[%clk 0:00:57]}  Bb6 {[%clk 0:00:27]} 27. Bxb6 {[%clk 0:00:56]}  Qxb6 {[%clk 0:00:27]} 28. Qe2 {[%clk 0:00:38]}  Kh7 {[%clk 0:00:11]} 29. Rd2 {[%clk 0:00:17]}  Qb3 {[%clk 0:00:08]} 30. Rc3 {[%clk 0:00:14]}  Qb6 {[%clk 0:00:07]} 31. Qe1 {[%clk 0:00:14]}  Rh8 {[%clk 0:00:06]} 32. Rh3 {[%clk 0:00:10]}  Kg8 {[%clk 0:00:05]} 33. Rxh4 {[%clk 0:00:10]}  Rxh4 {[%clk 0:00:03]} 34. Qxh4 {[%clk 0:00:10]}  Kf8 {[%clk 0:00:03]} 35. Qh8# {[%clk 0:00:10]} 1-0


[Site "https://www.chess.com"]

[Event "Titled Tuesday Blitz May 16 Early 2023"]
[White "Pacan-Milej, Kosma"]
[Black "Nakamura, Hikaru"]
[WhiteFideId "21800537"]
[BlackFideId "2016192"]
[WhiteElo "2302"]
[BlackElo "2885"]
[Result "0-1"]
[Round "07"]
[TimeControl "180+2"]
[Date "2023.05.16"]
[WhiteClock "0:00:00"]
[BlackClock "0:00:05"]

1. d4 {[%clk 0:03:00]}  g6 {[%clk 0:02:59]} 2. c4 {[%clk 0:03:00]}  Bg7 {[%clk 0:02:59]} 3. e4 {[%clk 0:02:58]}  d6 {[%clk 0:02:59]} 4. Nc3 {[%clk 0:02:59]}  Nf6 {[%clk 0:03:00]} 5. h3 {[%clk 0:02:58]}  Nbd7 {[%clk 0:03:00]} 6. Be3 {[%clk 0:02:59]}  c5 {[%clk 0:02:59]} 7. d5 {[%clk 0:02:59]}  b5 {[%clk 0:02:59]} 8. cxb5 {[%clk 0:02:57]}  a6 {[%clk 0:03:00]} 9. Nf3 {[%clk 0:02:56]}  O-O {[%clk 0:02:58]} 10. bxa6 {[%clk 0:02:52]}  Bxa6 {[%clk 0:02:57]} 11. Bxa6 {[%clk 0:02:52]}  Rxa6 {[%clk 0:02:58]} 12. O-O {[%clk 0:02:52]}  Qb8 {[%clk 0:02:57]} 13. Qc2 {[%clk 0:02:49]}  Ne8 {[%clk 0:02:55]} 14. a4 {[%clk 0:02:48]}  Nc7 {[%clk 0:02:54]} 15. b3 {[%clk 0:02:45]}  f5 {[%clk 0:02:46]} 16. exf5 {[%clk 0:02:42]}  Rxf5 {[%clk 0:02:46]} 17. Rad1 {[%clk 0:02:09]}  Rxf3 {[%clk 0:02:24]} 18. gxf3 {[%clk 0:02:10]}  Rb6 {[%clk 0:02:24]} 19. Rb1 {[%clk 0:01:40]}  Rb4 {[%clk 0:02:17]} 20. f4 {[%clk 0:01:25]}  Nf6 {[%clk 0:02:14]} 21. Rfd1 {[%clk 0:01:17]}  Qc8 {[%clk 0:02:14]} 22. Kg2 {[%clk 0:01:16]}  Qa8 {[%clk 0:01:33]} 23. Qe2 {[%clk 0:00:57]}  e6 {[%clk 0:01:25]} 24. Qf3 {[%clk 0:00:53]}  exd5 {[%clk 0:01:22]} 25. Nb5 {[%clk 0:00:33]}  Nxb5 {[%clk 0:01:15]} 26. axb5 {[%clk 0:00:34]}  Rxb5 {[%clk 0:01:16]} 27. f5 {[%clk 0:00:30]}  Qb7 {[%clk 0:01:11]} 28. fxg6 {[%clk 0:00:28]}  hxg6 {[%clk 0:01:12]} 29. Rg1 {[%clk 0:00:25]}  Ne4 {[%clk 0:00:42]} 30. Kh1 {[%clk 0:00:21]}  d4 {[%clk 0:00:40]} 31. Bf4 {[%clk 0:00:06]}  c4 {[%clk 0:00:19]} 32. Rg2 {[%clk 0:00:05]}  Rxb3 {[%clk 0:00:18]} 33. Rxb3 {[%clk 0:00:03]}  cxb3 {[%clk 0:00:19]} 34. Bc1 {[%clk 0:00:03]}  d3 {[%clk 0:00:12]} 35. Rxg6 {[%clk 0:00:01]}  Nxf2+ {[%clk 0:00:03]} 36. Kg2 {[%clk 0:00:01]}  Qxf3+ {[%clk 0:00:04]} 37. Kxf3 {[%clk 0:00:02]}  Nd1 {[%clk 0:00:04]} 38. Rxd6 {[%clk 0:00:01]}  b2 {[%clk 0:00:03]} 39. Bxb2 {[%clk 0:00:02]}  Nxb2 {[%clk 0:00:04]} 40. Ke3 {[%clk 0:00:01]}  Nc4+ {[%clk 0:00:04]} 41. Kxd3 {[%clk 0:00:00]}  Nxd6 {[%clk 0:00:05]} 0-1


[Site "https://www.chess.com"]

[Event "Titled Tuesday Blitz May 16 Early 2023"]
[White "Nihal Sarin"]
[Black "Pakleza, Zbigniew"]
[WhiteFideId "25092340"]
[BlackFideId "1119290"]
[WhiteElo "2689"]
[BlackElo "2410"]
[Result "1-0"]
[Round "07"]
[TimeControl "180+2"]
[Date "2023.05.16"]
[WhiteClock "0:01:50"]
[BlackClock "0:00:53"]

1. b4 {[%clk 0:03:00]}  d5 {[%clk 0:03:00]} 2. Bb2 {[%clk 0:02:58]}  Nf6 {[%clk 0:03:00]} 3. Nf3 {[%clk 0:02:53]}  Bf5 {[%clk 0:02:59]} 4. e3 {[%clk 0:02:53]}  e6 {[%clk 0:02:59]} 5. a3 {[%clk 0:02:54]}  h6 {[%clk 0:02:58]} 6. c4 {[%clk 0:02:54]}  c6 {[%clk 0:02:58]} 7. Nc3 {[%clk 0:02:54]}  Be7 {[%clk 0:02:56]} 8. Be2 {[%clk 0:02:55]}  O-O {[%clk 0:02:55]} 9. O-O {[%clk 0:02:56]}  Bh7 {[%clk 0:02:56]} 10. Rc1 {[%clk 0:02:55]}  Nbd7 {[%clk 0:02:55]} 11. cxd5 {[%clk 0:02:54]}  cxd5 {[%clk 0:02:54]} 12. Qb3 {[%clk 0:02:46]}  a5 {[%clk 0:02:47]} 13. Nb5 {[%clk 0:02:42]}  axb4 {[%clk 0:02:42]} 14. axb4 {[%clk 0:02:43]}  Ne4 {[%clk 0:02:36]} 15. Rc7 {[%clk 0:02:31]}  Rb8 {[%clk 0:02:12]} 16. Rfc1 {[%clk 0:02:18]}  Nd6 {[%clk 0:01:52]} 17. Ne5 {[%clk 0:02:14]}  Nxb5 {[%clk 0:01:29]} 18. Rxd7 {[%clk 0:02:09]}  Nd6 {[%clk 0:00:58]} 19. Rxd8 {[%clk 0:02:07]}  Rfxd8 {[%clk 0:00:53]} 20. d3 {[%clk 0:01:50]} 1-0


[Site "https://www.chess.com"]

[Event "Titled Tuesday Blitz May 16 Early 2023"]
[White "Grischuk, Alexander"]
[Black "Averjanov, Alexey"]
[WhiteFideId "4126025"]
[BlackFideId "14109867"]
[WhiteElo "2721"]
[BlackElo "2805"]
[Result "1-0"]
[Round "07"]
[TimeControl "180+2"]
[Date "2023.05.16"]
[WhiteClock "0:01:19"]
[BlackClock "0:00:17"]

1. e4 {[%clk 0:03:00]}  c6 {[%clk 0:03:00]} 2. Nc3 {[%clk 0:03:00]}  d5 {[%clk 0:03:01]} 3. d3 {[%clk 0:03:01]}  e5 {[%clk 0:02:49]} 4. Nf3 {[%clk 0:03:00]}  d4 {[%clk 0:02:40]} 5. Ne2 {[%clk 0:02:59]}  Bd6 {[%clk 0:02:35]} 6. g3 {[%clk 0:02:59]}  c5 {[%clk 0:02:31]} 7. Bg2 {[%clk 0:02:59]}  Nc6 {[%clk 0:02:31]} 8. O-O {[%clk 0:03:00]}  Nge7 {[%clk 0:02:28]} 9. Nh4 {[%clk 0:02:54]}  O-O {[%clk 0:02:23]} 10. f4 {[%clk 0:02:53]}  exf4 {[%clk 0:02:20]} 11. gxf4 {[%clk 0:02:52]}  f5 {[%clk 0:02:11]} 12. Ng3 {[%clk 0:02:35]}  Bc7 {[%clk 0:02:01]} 13. Qh5 {[%clk 0:02:11]}  Be6 {[%clk 0:01:35]} 14. Bd2 {[%clk 0:02:08]}  Qd7 {[%clk 0:01:29]} 15. Rae1 {[%clk 0:02:05]}  Rae8 {[%clk 0:01:27]} 16. Nf3 {[%clk 0:02:00]}  fxe4 {[%clk 0:01:16]} 17. Ng5 {[%clk 0:02:00]}  h6 {[%clk 0:01:08]} 18. Nxe6 {[%clk 0:01:57]}  Qxe6 {[%clk 0:01:09]} 19. Bxe4 {[%clk 0:01:40]}  Qd6 {[%clk 0:01:01]} 20. Re2 {[%clk 0:01:37]}  Kh8 {[%clk 0:00:54]} 21. Rg2 {[%clk 0:01:34]}  Rg8 {[%clk 0:00:41]} 22. Nf5 {[%clk 0:01:28]}  Nxf5 {[%clk 0:00:40]} 23. Qxf5 {[%clk 0:01:29]}  g6 {[%clk 0:00:37]} 24. Qh3 {[%clk 0:01:27]}  Kh7 {[%clk 0:00:24]} 25. f5 {[%clk 0:01:27]}  Rxe4 {[%clk 0:00:17]} 26. Qxh6# {[%clk 0:01:19]} 1-0


[Site "https://www.chess.com"]

[Event "Titled Tuesday Blitz May 16 Early 2023"]
[White "Bryakin, Mikhail"]
[Black "Van Foreest, Jorden"]
[WhiteFideId "4165314"]
[BlackFideId "1039784"]
[WhiteElo "2467"]
[BlackElo "2633"]
[Result "0-1"]
[Round "07"]
[TimeControl "180+2"]
[Date "2023.05.16"]
[WhiteClock "0:00:00"]
[BlackClock "0:00:07"]

1. Nf3 {[%clk 0:02:45]}  d6 {[%clk 0:03:00]} 2. b3 {[%clk 0:02:43]}  e5 {[%clk 0:03:00]} 3. e4 {[%clk 0:02:33]}  f5 {[%clk 0:02:58]} 4. d3 {[%clk 0:02:32]}  Nf6 {[%clk 0:02:57]} 5. Nbd2 {[%clk 0:02:32]}  Be7 {[%clk 0:02:58]} 6. Bb2 {[%clk 0:02:31]}  O-O {[%clk 0:02:58]} 7. Qe2 {[%clk 0:02:30]}  Nc6 {[%clk 0:02:58]} 8. g3 {[%clk 0:02:23]}  a5 {[%clk 0:02:53]} 9. a3 {[%clk 0:02:23]}  Qe8 {[%clk 0:02:52]} 10. Bg2 {[%clk 0:02:23]}  h6 {[%clk 0:02:40]} 11. O-O {[%clk 0:02:21]}  f4 {[%clk 0:02:40]} 12. gxf4 {[%clk 0:02:21]}  Nh5 {[%clk 0:02:40]} 13. f5 {[%clk 0:02:15]}  Nf4 {[%clk 0:02:38]} 14. Qe3 {[%clk 0:02:14]}  Ng6 {[%clk 0:02:34]} 15. fxg6 {[%clk 0:02:12]}  Qxg6 {[%clk 0:02:28]} 16. Kh1 {[%clk 0:02:12]}  Qh5 {[%clk 0:02:26]} 17. Rg1 {[%clk 0:02:10]}  Bg4 {[%clk 0:02:27]} 18. d4 {[%clk 0:01:59]}  Rf4 {[%clk 0:02:28]} 19. dxe5 {[%clk 0:01:57]}  Raf8 {[%clk 0:02:25]} 20. exd6 {[%clk 0:01:41]}  Bxd6 {[%clk 0:02:21]} 21. e5 {[%clk 0:01:42]}  Be7 {[%clk 0:02:22]} 22. Ne1 {[%clk 0:01:00]}  Rxf2 {[%clk 0:02:12]} 23. Ne4 {[%clk 0:01:00]}  Re2 {[%clk 0:02:13]} 24. Qc3 {[%clk 0:00:48]}  Rxg2 {[%clk 0:01:42]} 25. Rxg2 {[%clk 0:00:32]}  Nxe5 {[%clk 0:01:28]} 26. Ng3 {[%clk 0:00:24]}  Qh3 {[%clk 0:01:09]} 27. Qxe5 {[%clk 0:00:23]}  Bf6 {[%clk 0:01:10]} 28. Qd5+ {[%clk 0:00:18]}  Be6 {[%clk 0:01:09]} 29. Qh5 {[%clk 0:00:17]}  Bxb2 {[%clk 0:01:09]} 30. Rb1 {[%clk 0:00:15]}  Qxh5 {[%clk 0:01:06]} 31. Nxh5 {[%clk 0:00:15]}  Bd5 {[%clk 0:01:07]} 32. Nd3 {[%clk 0:00:12]}  Bxa3 {[%clk 0:01:07]} 33. Nhf4 {[%clk 0:00:11]}  Bc6 {[%clk 0:01:03]} 34. Kg1 {[%clk 0:00:10]}  Bd6 {[%clk 0:01:01]} 35. Rf2 {[%clk 0:00:09]}  Rf5 {[%clk 0:00:57]} 36. Ng2 {[%clk 0:00:09]}  Rh5 {[%clk 0:00:55]} 37. h4 {[%clk 0:00:08]}  b5 {[%clk 0:00:49]} 38. Re1 {[%clk 0:00:07]}  a4 {[%clk 0:00:49]} 39. bxa4 {[%clk 0:00:08]}  bxa4 {[%clk 0:00:50]} 40. c4 {[%clk 0:00:09]}  Bg3 {[%clk 0:00:46]} 41. Re6 {[%clk 0:00:09]}  Bxf2+ {[%clk 0:00:39]} 42. Kxf2 {[%clk 0:00:10]}  Bxg2 {[%clk 0:00:39]} 43. Kxg2 {[%clk 0:00:10]}  Rxh4 {[%clk 0:00:39]} 44. Rc6 {[%clk 0:00:11]}  Rd4 {[%clk 0:00:35]} 45. Nb4 {[%clk 0:00:10]}  a3 {[%clk 0:00:34]} 46. Rxc7 {[%clk 0:00:10]}  Rd2+ {[%clk 0:00:33]} 47. Kf3 {[%clk 0:00:10]}  a2 {[%clk 0:00:26]} 48. Ra7 {[%clk 0:00:10]}  Rd4 {[%clk 0:00:27]} 49. Rxa2 {[%clk 0:00:04]}  Rxc4 {[%clk 0:00:27]} 50. Nd5 {[%clk 0:00:04]}  Rd4 {[%clk 0:00:25]} 51. Ne3 {[%clk 0:00:03]}  Rd7 {[%clk 0:00:24]} 52. Ra6 {[%clk 0:00:03]}  Kh7 {[%clk 0:00:25]} 53. Ng4 {[%clk 0:00:04]}  Rf7+ {[%clk 0:00:25]} 54. Kg3 {[%clk 0:00:04]}  Re7 {[%clk 0:00:25]} 55. Kf4 {[%clk 0:00:04]}  Rf7+ {[%clk 0:00:22]} 56. Ke4 {[%clk 0:00:05]}  g5 {[%clk 0:00:20]} 57. Nf6+ {[%clk 0:00:03]}  Kg6 {[%clk 0:00:20]} 58. Ng4+ {[%clk 0:00:04]}  Kg7 {[%clk 0:00:19]} 59. Ne5 {[%clk 0:00:04]}  Rf4+ {[%clk 0:00:19]} 60. Ke3 {[%clk 0:00:05]}  Rf5 {[%clk 0:00:19]} 61. Ke4 {[%clk 0:00:04]}  Rf4+ {[%clk 0:00:19]} 62. Kd5 {[%clk 0:00:04]}  Rf1 {[%clk 0:00:14]} 63. Ra7+ {[%clk 0:00:03]}  Kg8 {[%clk 0:00:15]} 64. Ke6 {[%clk 0:00:03]}  h5 {[%clk 0:00:14]} 65. Nf7 {[%clk 0:00:02]}  g4 {[%clk 0:00:11]} 66. Nh6+ {[%clk 0:00:02]}  Kf8 {[%clk 0:00:10]} 67. Nf5 {[%clk 0:00:03]}  Re1+ {[%clk 0:00:06]} 68. Kf6 {[%clk 0:00:03]}  Ke8 {[%clk 0:00:07]} 69. Ng7+ {[%clk 0:00:01]}  Kd8 {[%clk 0:00:07]} 70. Nxh5 {[%clk 0:00:02]}  Re3 {[%clk 0:00:07]} 71. Rg7 {[%clk 0:00:01]}  g3 {[%clk 0:00:08]} 72. Nxg3 {[%clk 0:00:01]}  Rf3+ {[%clk 0:00:08]} 73. Nf5 {[%clk 0:00:02]}  Rf1 {[%clk 0:00:07]} 74. Rg8+ {[%clk 0:00:02]}  Kd7 {[%clk 0:00:07]} 75. Rg3 {[%clk 0:00:03]}  Kc6 {[%clk 0:00:07]} 76. Rd3 {[%clk 0:00:00]}  Kc5 {[%clk 0:00:07]} 0-1


[Site "https://www.chess.com"]